﻿Department family,Entity,Date,Expense type,Expense area,Supplier,Transaction number,Amount,VAT registration number
Dept of Health,MHRA,01/10/2018,Application Services and Maintenance,Transformation,Accenture (UK) Limited,3003406566,"290,816.03 ",788629066
Dept of Health,MHRA,01/10/2018,Application Services and Maintenance,Transformation,Cognizant Worldwide Limited,CW101-0000118094,"140,444.40 ",123382928
Dept of Health,MHRA,01/10/2018,Electricity,Operations,EDF Energy,4581716,"81,468.62 ",523041202
Dept of Health,MHRA,01/10/2018,Electricity,Operations,EDF Energy,4775116,"77,606.33 ",523041202
Dept of Health,MHRA,01/10/2018,Infrastructure Services and Maintenance,Transformation,EntServ UK Limited,6063960,"25,722.12 ",432995915
Dept of Health,MHRA,01/10/2018,Help Desk and End User Support,Transformation,IDE Group Manage Limited,5002460,"39,650.00 ",123385037
Dept of Health,MHRA,01/10/2018,Help Desk and End User Support,Transformation,IDE Group Manage Limited,5002462,"33,619.99 ",123385037
Dept of Health,MHRA,01/10/2018,Infrastructure Services and Maintenance,Transformation,NTT Data UK Ltd,4012263,"138,788.60 ",159334590
Dept of Health,MHRA,01/10/2018,Software & Licences,Transformation,Oracle Corporation UK Limited,1667414,"101,528.28 ",391313073
Dept of Health,MHRA,01/10/2018,Infrastructure Services and Maintenance,Transformation,Redrock Consulting Ltd,7998,"33,544.13 ",862247715
Dept of Health,MHRA,03/10/2018,Application Services and Maintenance,Transformation,Cognizant Worldwide Limited,CW101-0000126814,"35,404.80 ",123382928
Dept of Health,MHRA,03/10/2018,Assets Under Construction - Plant & Equipment,Operations,Commercial Services UK Ltd,INV-0771,"64,705.51 ",130597616
Dept of Health,MHRA,03/10/2018,Assets Under Construction - Plant & Equipment,Operations,Commercial Services UK Ltd,INV-0770,"30,000.00 ",130597616
Dept of Health,MHRA,03/10/2018,Assets Under Construction - Plant & Equipment,Operations,Commercial Services UK Ltd,INV-0769,"27,601.80 ",130597616
Dept of Health,MHRA,03/10/2018,"Service, Integration & Management (SIAM)",Transformation,Redrock Consulting Ltd,7962,"58,160.30 ",862247715
Dept of Health,MHRA,03/10/2018,Infrastructure Services and Maintenance,Transformation,Sungard Availability Services (UK) Limited,18005142,"150,000.03 ",823829709
Dept of Health,MHRA,08/10/2018,Lab Equipment Repairs and Maintenance,Operations,Beckman Coulter United Kingdom Ltd,4022828,"32,152.26 ",918561309
Dept of Health,MHRA,08/10/2018,Contracted Out Services Miscellaneous,Transformation,Digital Business Design LLP,MHRA06,"60,840.00 ",265660486
Dept of Health,MHRA,08/10/2018,Contracted Out Services Miscellaneous,Transformation,PA Consulting Services Ltd,10125668,"252,985.32 ",238535057
Dept of Health,MHRA,08/10/2018,Contracted Out Services Miscellaneous,Transformation,PA Consulting Services Ltd,10125522,"224,551.68 ",238535057
Dept of Health,MHRA,08/10/2018,Assets Under Construction - Plant & Equipment,Operations,Tyco Fire and Intergrated Solutions (UK) Limited,TY026561,"163,670.98 ",413633086
Dept of Health,MHRA,10/10/2018,Application Services and Maintenance,Transformation,Accenture (UK) Limited,3003407358,"349,672.26 ",788629066
Dept of Health,MHRA,10/10/2018,Application Services and Maintenance,Transformation,Accenture (UK) Limited,3003407357,"26,500.01 ",788629066
Dept of Health,MHRA,10/10/2018,Infrastructure Services and Maintenance,Transformation,NTT Data UK Ltd,4012422,"138,788.60 ",159334590
Dept of Health,MHRA,10/10/2018,Application Services and Maintenance,Transformation,Trustmarque Solutions Limited,2276677,"60,170.64 ",394593601
Dept of Health,MHRA,15/10/2018,SIAM - Enterprise Architecture,Transformation,Digital Business Design LLP,MHRA09,"39,696.00 ",265660486
Dept of Health,MHRA,15/10/2018,Application Services and Maintenance,Transformation,Digital Business Design LLP,MHRA08,"30,210.00 ",265660486
Dept of Health,MHRA,15/10/2018,"Service, Integration & Management (SIAM)",Transformation,Redrock Consulting Ltd,8056,"58,118.23 ",862247715
Dept of Health,MHRA,15/10/2018,Infrastructure Services and Maintenance,Transformation,Redrock Consulting Ltd,8052,"27,368.64 ",862247715
Dept of Health,MHRA,17/10/2018,SIAM - Portfolio Services,Transformation,FDM Group ltd,273758-FM,"27,288.00 ",583540529
Dept of Health,MHRA,17/10/2018,Application Services and Maintenance,Finance & Procurement,Redrock Consulting Ltd,8049,"44,351.23 ",862247715
Dept of Health,MHRA,22/10/2018,Application Services and Maintenance,Transformation,Accenture (UK) Limited,3003408820,"88,390.80 ",788629066
Dept of Health,MHRA,22/10/2018,Infrastructure Services and Maintenance,Transformation,Redrock Consulting Ltd,8055,"80,125.08 ",862247715
Dept of Health,MHRA,24/10/2018,Application Services and Maintenance,Transformation,Accenture (UK) Limited,3003408819,"366,569.51 ",788629066
Dept of Health,MHRA,24/10/2018,Travel and Subsistence,Finance & Procurement,Clarity Travel Management,MHRA0030,"167,154.98 ",197694731
Dept of Health,MHRA,24/10/2018,Help Desk and End User Support,Transformation,IDE Group Manage Limited,5002648,"39,650.00 ",123385037
Dept of Health,MHRA,24/10/2018,Help Desk and End User Support,Transformation,IDE Group Manage Limited,5002645,"33,619.99 ",123385037
Dept of Health,MHRA,24/10/2018,Subcontracted Laboratory Services,Virology,The Regents of The University California (UCSF),INVOPP1099295,"46,035.00 ",
Dept of Health,MHRA,29/10/2018,Application Services and Maintenance,Transformation,Accenture (UK) Limited,3003409471,"270,828.00 ",788629066
Dept of Health,MHRA,29/10/2018,Application Services and Maintenance,Transformation,Accenture (UK) Limited,3003409357,"26,059.20 ",788629066
Dept of Health,MHRA,29/10/2018,Assets Under Construction - Plant & Equipment,Operations,Commercial Services UK Ltd,INV-0782,"205,200.00 ",130597616
Dept of Health,MHRA,29/10/2018,Gas,Operations,Corona Energy Retail 4 Ltd,13026526,"30,010.55 ",577704800
Dept of Health,MHRA,29/10/2018,Application Services and Maintenance,Transformation,Red Ant Digital Ltd,INV-07910,"39,540.00 ",123388322
Dept of Health,MHRA,29/10/2018,Application Services and Maintenance,Transformation,Red Ant Digital Ltd,INV-07912,"39,540.00 ",123388322
Dept of Health,MHRA,31/10/2018,Solicitors,Policy,Government Legal Department,A2698,"26,700.00 ",888823066
Dept of Health,MHRA,31/10/2018,Accommodation Rates,Operations,Hertsmere Borough Council,N002960H,"80,359.00 ",230640406
Dept of Health,MHRA,31/10/2018,Security,Operations,ISS Facility Services Limited,SLINVS/44008170,"50,767.98 ",945751887
Dept of Health,MHRA,31/10/2018,Security,Operations,ISS Facility Services Limited,SLINVS44007984,"50,767.98 ",945751887
